bitfinex/quotes_BTCUSD_20240727
["timestamp","ask_amount","ask_price","bid_price","bid_amount"]
[1722120893839,0.002,68722.0,68721.0,1.44757157]
[1722120894040,0.002,68722.0,68721.0,1.44957157]
[1722120894454,0.0015542,68735.0,68734.0,0.11639]
[1722120894660,0.07166143,68735.0,68734.0,0.411171]
[1722120895077,0.07010723,68735.0,68734.0,0.411171]
[1722120895526,0.04358108,68737.0,68736.0,0.116387]
[1722120895679,0.04358108,68737.0,68736.0,0.200787]
[1722120895880,0.11344772,68737.0,68736.0,0.200787]
[1722120896088,0.11344772,68737.0,68736.0,0.433561]
[1722120896451,0.11344772,68737.0,68736.0,0.512761]
[1722120896452,0.06986664,68737.0,68736.0,0.512761]
[1722120896581,0.07086664,68737.0,68736.0,0.279987]
[1722120896782,0.001,68737.0,68736.0,0.279987]
[1722120897181,0.04354356,68738.0,68737.0,0.116385]
[1722120897387,0.00084,68739.0,68737.0,0.116385]
[1722120897388,0.11434616,68739.0,68737.0,0.116385]
[1722120897610,0.07151789,68738.0,68737.0,0.115385]
[1722120898008,0.06996369,68738.0,68737.0,0.348156]
[1722120898428,0.06996369,68738.0,68737.0,0.580927]
[1722120899219,0.001,68738.0,68737.0,0.580927]
[1722120899434,0.001,68738.0,68737.0,0.813698]
[1722120899623,0.001,68738.0,68737.0,0.875698]
[1722120899823,0.02282985,68738.0,68737.0,0.875698]
[1722120900105,0.02382985,68738.0,68737.0,0.875698]
[1722120900313,0.02382985,68738.0,68737.0,0.954898]
[1722120900731,0.02282985,68738.0,68737.0,0.954898]
[1722120902018,0.02382985,68738.0,68737.0,0.954898]
[1722120902600,0.02282985,68738.0,68737.0,0.954898]
[1722120902800,0.02382985,68738.0,68737.0,0.954898]
[1722120903025,0.02382985,68738.0,68737.0,0.977898]
[1722120903245,0.02466985,68738.0,68737.0,0.977898]
[1722120903428,0.02366985,68738.0,68737.0,0.977898]
[1722120904147,0.02366985,68738.0,68737.0,0.898698]
[1722120904355,0.02466985,68738.0,68737.0,0.983098]
[1722120904787,0.02466985,68738.0,68737.0,1.062298]
[1722120904987,0.02466985,68738.0,68737.0,1.21255757]
[1722120906292,0.00184,68738.0,68737.0,1.21255757]
[1722120908307,0.00184,68738.0,68737.0,1.22235464]
[1722120909705,0.02466743,68738.0,68737.0,1.22235464]
[1722120909912,0.00184,68738.0,68737.0,1.22235464]
[1722120910738,0.00184,68738.0,68737.0,0.90849507]
[1722120910935,0.00184,68738.0,68737.0,0.99289507]
[1722120911811,0.00084,68738.0,68737.0,0.99289507]
[1722120912023,0.00184,68738.0,68737.0,0.99289507]
[1722120912823,0.00084,68738.0,68737.0,0.99289507]
[1722120913143,0.00184,68738.0,68737.0,0.99289507]
[1722120913360,0.02466793,68738.0,68737.0,0.99289507]
[1722120913573,0.00084,68738.0,68737.0,0.99289507]
[1722120914368,0.00084,68738.0,68737.0,0.76012407]
[1722120914582,0.00084,68738.0,68737.0,0.73712407]
[1722120914998,0.00184,68738.0,68737.0,0.73712407]
[1722120916205,0.00184,68738.0,68737.0,0.44235307]
[1722120916551,0.00184,68738.0,68737.0,0.12518207]
[1722120916693,0.00184,68738.0,68737.0,0.35795307]
[1722120917076,0.00184,68738.0,68737.0,0.44235307]
[1722120918018,0.07944,68738.0,68737.0,0.44235307]
[1722120919696,0.00184,68738.0,68737.0,1.19715464]
[1722120919921,0.00184,68738.0,68737.0,1.22015464]
[1722120920632,0.0246673,68738.0,68737.0,1.22015464]
[1722120922737,0.00184,68738.0,68737.0,1.22015464]
[1722120923693,0.00184,68738.0,68737.0,1.26301662]
[1722120925088,0.00184,68738.0,68737.0,1.22015464]
[1722120926107,0.0246674,68738.0,68737.0,1.22015464]
[1722120926430,0.00184,68738.0,68737.0,1.22015464]
[1722120928596,0.00084,68739.0,68738.0,0.583917]
[1722120928804,0.00084,68739.0,68738.0,1.07130636]
[1722120929006,0.00084,68739.0,68738.0,1.41634738]
[1722120929211,0.00084,68739.0,68738.0,1.64911438]
[1722120930571,0.0015542,68747.0,68746.0,1.04733]
[1722120930713,0.0015542,68747.0,68746.0,1.54398957]
[1722120930924,0.0015542,68747.0,68746.0,1.54598957]
[1722120931122,0.07844,68761.0,68747.0,1.049316]
[1722120931470,0.00084,68761.0,68760.0,0.955425]
[1722120931695,0.00084,68761.0,68760.0,1.44577757]
[1722120931816,0.00084,68761.0,68760.0,1.48863955]
[1722120932017,0.00084,68761.0,68760.0,1.48663955]
[1722120933200,0.02365974,68761.0,68760.0,1.49263955]
[1722120933960,0.00084,68761.0,68760.0,1.49263955]
[1722120935587,0.00084,68761.0,68760.0,1.49463955]
[1722120937196,0.00084,68761.0,68760.0,1.48863955]
[1722120937400,0.02365924,68761.0,68760.0,1.48863955]
[1722120938010,0.02365924,68761.0,68760.0,1.48363955]
[1722120938410,0.00084,68761.0,68760.0,1.48363955]
[1722120938638,0.00184,68761.0,68760.0,1.49663955]
[1722120938987,0.00184,68761.0,68760.0,1.59663955]
[1722120939189,0.00084,68761.0,68760.0,1.58546074]
[1722120939362,0.00184,68761.0,68760.0,1.59946074]
[1722120939821,0.00084,68761.0,68760.0,1.62832272]
[1722120940227,0.00184,68761.0,68760.0,1.64232272]
[1722120941182,0.00128843,68775.0,68774.0,0.814261]
[1722120941377,0.55077872,68779.0,68774.0,0.814261]
[1722120941378,0.55077872,68779.0,68778.0,0.116316]
[1722120941580,0.1,68779.0,68778.0,0.898612]
[1722120941899,0.12281608,68779.0,68778.0,0.94147398]
[1722120942580,0.12281608,68779.0,68778.0,0.85707398]
[1722120942754,0.12281608,68779.0,68778.0,0.67512515]
[1722120942953,0.1,68779.0,68778.0,0.58758]
[1722120944486,0.1,68779.0,68778.0,0.820212]
[1722120944689,0.1,68779.0,68778.0,0.927612]
[1722120945651,0.12281587,68779.0,68778.0,0.927612]
[1722120947310,0.1,68779.0,68778.0,0.927612]
[1722120947830,0.1,68779.0,68778.0,0.96872562]
[1722120948677,0.1,68779.0,68778.0,0.93719622]
[1722120950629,0.12281568,68779.0,68778.0,0.93719622]
[1722120951036,0.1,68779.0,68778.0,0.93719622]
[1722120952379,0.1,68779.0,68778.0,1.13056941]
[1722120952714,0.00084,68781.0,68780.0,0.814187]
[1722120952877,0.00084,68781.0,68780.0,0.837187]
[1722120953078,0.00084,68781.0,68780.0,1.07324336]
[1722120953573,0.00084,68781.0,68780.0,1.02856019]
[1722120954346,0.02365413,68781.0,68780.0,0.99944657]
[1722120954568,0.00084,68781.0,68780.0,0.99944657]
[1722120954769,0.07774,68781.0,68780.0,0.79593519]
[1722120954979,0.07774,68781.0,68780.0,0.75482157]
[1722120955190,0.07774,68781.0,68780.0,0.76882157]
[1722120956246,0.14334,68781.0,68780.0,0.76882157]
[1722120957963,0.16615506,68781.0,68780.0,0.76882157]
[1722120960882,0.16615506,68781.0,68780.0,0.014]
[1722120961132,0.23368526,68781.0,68780.0,0.014]
[1722120962111,0.23368526,68781.0,68778.0,0.12589922]
[1722120962310,0.0015542,68780.0,68778.0,0.00958422]
[1722120962671,0.0015542,68780.0,68775.0,0.232639]
[1722120962672,0.0692465,68780.0,68777.0,0.116317]
[1722120962876,0.0015542,68780.0,68777.0,0.116317]
[1722120963226,0.259651,68781.0,68777.0,0.116317]
[1722120963426,0.0015542,68780.0,68777.0,0.116317]
[1722120963626,0.0656,68778.0,68777.0,0.116317]
[1722120963808,0.13328654,68778.0,68777.0,0.116317]
[1722120964150,0.13328654,68778.0,68765.0,0.37334166]
[1722120964151,0.0769,68775.0,68769.0,0.23266]
[1722120964379,0.0769,68775.0,68772.0,0.116324]
[1722120964489,0.0769,68775.0,68769.0,0.23266]
[1722120964490,0.06772894,68774.0,68769.0,0.24241814]
[1722120964691,0.0015542,68773.0,68772.0,0.116326]
[1722120964975,0.06928314,68773.0,68772.0,0.116326]
[1722120965181,0.06772894,68773.0,68772.0,0.116326]
[1722120966268,0.02281757,68773.0,68772.0,0.116326]
[1722120966470,0.18423905,68773.0,68769.0,0.11633]
[1722120966710,0.0769,68775.0,68771.0,0.116328]
[1722120966711,0.0015542,68772.0,68771.0,0.116328]
[1722120966867,0.0656,68773.0,68772.0,0.116326]
[1722120967424,0.13355045,68773.0,68772.0,0.116326]
[1722120967601,0.13355045,68773.0,68772.0,0.125326]
[1722120967602,0.13455045,68773.0,68772.0,0.125326]
[1722120969570,0.08941756,68773.0,68772.0,0.125326]
[1722120969775,0.15740088,68773.0,68772.0,0.125326]
[1722120970553,0.13458332,68773.0,68772.0,0.125326]
[1722120972858,0.13452442,68773.0,68772.0,0.125326]
[1722120973894,0.15734198,68773.0,68772.0,0.125326]
[1722120975208,0.0666,68773.0,68772.0,0.116326]
[1722120976388,0.0666,68773.0,68772.0,0.58163]
[1722120976389,0.001,68773.0,68772.0,0.58163]
[1722120976752,0.001,68773.0,68772.0,0.876882]
[1722120976948,0.001,68773.0,68772.0,0.899882]
[1722120977782,0.02381751,68773.0,68772.0,0.899882]
[1722120978440,0.001,68773.0,68772.0,0.899882]
[1722120980413,0.001,68773.0,68772.0,0.837282]
[1722120981550,0.02381727,68773.0,68772.0,0.837282]
[1722120982358,0.001,68773.0,68772.0,0.837282]
[1722120989503,0.06846357,68773.0,68772.0,0.837282]
[1722120990099,0.001,68773.0,68772.0,0.837282]
[1722120990302,0.02381738,68773.0,68772.0,0.837282]
[1722120990719,0.001,68773.0,68772.0,0.837282]
[1722120991870,0.06840229,68773.0,68772.0,0.837282]
[1722120992097,0.136,68772.0,68767.0,0.00970081]
[1722120992300,0.136,68772.0,68767.0,0.349002]
[1722120992301,0.04363537,68768.0,68767.0,0.349002]
[1722120992527,0.04363537,68768.0,68761.0,0.000924]
[1722120992528,0.13286531,68768.0,68766.0,0.116335]
[1722120992722,0.11105092,68767.0,68766.0,0.116335]
[1722120992938,0.06544774,68768.0,68767.0,0.116334]
[1722120993137,0.0674367,68768.0,68767.0,0.116334]
[1722120993655,0.0674367,68768.0,68767.0,0.125334]
[1722120993857,0.13288444,68768.0,68767.0,0.125334]
[1722120994003,0.09025573,68768.0,68767.0,0.125334]
[1722120994204,0.13387569,68768.0,68767.0,0.349003]
[1722120994782,0.13389627,68768.0,68767.0,0.349003]
[1722120994912,0.11107724,68768.0,68767.0,0.349003]
[1722120995326,0.06745728,68768.0,68767.0,0.349003]
[1722120995534,0.06745728,68768.0,68767.0,0.359003]
[1722120995535,0.06862699,68768.0,68767.0,0.359003]
[1722120995732,0.11224363,68768.0,68767.0,0.359003]
[1722120995939,0.06762699,68768.0,68767.0,0.349003]
[1722120996139,0.06862699,68768.0,68767.0,0.123334]
[1722120996341,0.06862699,68768.0,68767.0,0.356003]
[1722120997562,0.06862699,68768.0,68767.0,0.588672]
[1722120998165,0.09144598,68768.0,68767.0,0.588672]
[1722120998364,0.09144598,68768.0,68767.0,0.356003]
[1722120998772,0.02381899,68768.0,68767.0,0.356003]
[1722120998981,0.09144926,68768.0,68767.0,0.356003]
[1722120999515,0.02381899,68768.0,68767.0,0.50626257]
[1722120999659,0.02381899,68768.0,68767.0,0.53018657]
[1722121004379,0.02381899,68768.0,68767.0,0.18118357]
[1722121007038,0.001,68768.0,68767.0,0.18118357]
[1722121009642,0.001,68768.0,68767.0,0.18318357]
[1722121010380,0.02381779,68768.0,68767.0,0.18118357]
[1722121013875,0.001,68768.0,68767.0,0.99552457]
[1722121015727,0.001,68768.0,68767.0,0.822265]
[1722121015728,0.1426,68768.0,68767.0,0.822265]
[1722121015951,0.1426,68768.0,68767.0,0.589596]
[1722121017011,0.16541848,68768.0,68767.0,0.589596]
[1722121017454,0.1426,68768.0,68767.0,0.589596]
[1722121020722,0.16541848,68768.0,68767.0,0.589596]
[1722121021147,0.1426,68768.0,68767.0,0.589596]
[1722121022058,0.25267978,68768.0,68767.0,0.589596]
[1722121023992,0.2753834,68768.0,68767.0,0.589596]
[1722121024187,0.25257993,68768.0,68767.0,0.589596]
[1722121024386,0.27539838,68768.0,68767.0,0.589596]
[1722121024591,0.20894187,68768.0,68767.0,0.589596]
[1722121024795,0.25257993,68768.0,68767.0,0.589596]
[1722121025461,0.20894187,68768.0,68767.0,0.589596]
[1722121025657,0.25257993,68768.0,68767.0,0.589596]
[1722121025877,0.1426,68768.0,68767.0,0.589596]
[1722121028136,0.16541845,68768.0,68767.0,0.589596]
[1722121030375,0.02381845,68768.0,68767.0,1.11282457]
[1722121030589,0.02381845,68768.0,68767.0,1.13582457]
[1722121031663,0.001,68768.0,68767.0,1.13582457]
[1722121032152,0.001,68768.0,68767.0,0.99552457]
[1722121034722,0.09921782,68768.0,68767.0,0.589596]
[1722121035957,0.0764,68768.0,68767.0,0.589596]
[1722121039243,0.09921873,68768.0,68767.0,0.589596]
[1722121041003,0.0764,68768.0,68767.0,0.589596]
[1722121043717,0.09921873,68768.0,68767.0,0.589596]
[1722121046059,0.02381873,68768.0,68767.0,0.649996]
[1722121046455,0.02381873,68768.0,68767.0,0.882665]
[1722121048356,0.001,68768.0,68767.0,1.36689357]
[1722121048613,0.001,68768.0,68767.0,1.36589357]
[1722121048816,0.001,68768.0,68767.0,1.58401393]
[1722121049024,0.00084,68773.0,68772.0,1.271034]
[1722121049194,0.00084,68773.0,68772.0,1.66041393]
[1722121049409,0.00084,68773.0,68772.0,1.58540719]
[1722121049608,0.00084,68773.0,68772.0,1.54229357]
[1722121050987,0.00084,68773.0,68772.0,1.65848577]
[1722121051489,0.00084,68773.0,68772.0,1.54229357]
[1722121051662,0.00184,68773.0,68772.0,1.55829357]
[1722121052249,0.02465493,68773.0,68772.0,1.55829357]
[1722121052661,0.00184,68773.0,68772.0,1.55829357]
[1722121055695,0.02465493,68773.0,68772.0,1.55829357]
[1722121057121,0.00184,68773.0,68772.0,1.55829357]
[1722121060046,0.00184,68773.0,68772.0,1.47389357]
[1722121060290,0.00184,68773.0,68772.0,1.55829357]
[1722121060446,0.00184,68773.0,68772.0,1.55629357]
[1722121060447,0.02465493,68773.0,68772.0,1.55629357]
[1722121060685,0.02465493,68773.0,68772.0,1.55829357]
[1722121060891,0.02465493,68773.0,68772.0,1.56795938]
[1722121061546,0.02465493,68773.0,68772.0,1.56595938]
[1722121063778,0.02465493,68773.0,68772.0,1.56795938]
[1722121063996,0.02465493,68773.0,68772.0,1.56595938]
[1722121064355,0.00184,68773.0,68772.0,1.56795938]
[1722121065488,0.00184,68773.0,68772.0,1.56595938]
[1722121066282,0.00184,68773.0,68772.0,1.56795938]
[1722121067458,0.02465509,68773.0,68772.0,1.56795938]
[1722121067638,0.02465509,68773.0,68772.0,1.56595938]
[1722121068203,0.02465509,68773.0,68772.0,1.56795938]
[1722121073067,0.02465509,68773.0,68772.0,1.49065938]
[1722121073871,0.02465509,68773.0,68772.0,1.42825938]
[1722121074480,0.02465509,68773.0,68772.0,1.54518768]
[1722121075795,0.02465509,68773.0,68772.0,1.42825938]
[1722121076041,0.16605509,68773.0,68772.0,0.85555538]
[1722121078114,0.16605509,68773.0,68772.0,0.87855538]
[1722121084543,0.14324,68773.0,68772.0,0.87855538]
[1722121087494,0.16605686,68773.0,68772.0,0.87855538]
[1722121088894,0.16605686,68773.0,68772.0,0.70529581]
[1722121089441,0.14324,68773.0,68772.0,0.70529581]
[1722121091769,0.16605686,68773.0,68772.0,0.70529581]
[1722121093381,0.14324,68773.0,68772.0,0.70529581]
[1722121096711,0.16605686,68773.0,68772.0,0.70529581]
[1722121100175,0.16605686,68773.0,68772.0,0.12366581]
[1722121100352,0.23063771,68773.0,68772.0,0.014]
[1722121100557,0.2321919,68773.0,68772.0,0.014]
[1722121100716,0.16761106,68773.0,68772.0,0.014]
[1722121100921,0.27580136,68773.0,68772.0,0.014]
[1722121101123,0.20782257,68773.0,68772.0,0.014]
[1722121101327,0.20782257,68773.0,68772.0,0.130326]
[1722121101573,0.20937677,68773.0,68772.0,0.130326]
[1722121101769,0.20837677,68773.0,68772.0,0.116326]
[1722121101975,0.20682257,68773.0,68772.0,0.116326]
[1722121102227,0.0649,68771.0,68770.0,0.12601454]
[1722121102387,0.21088257,68771.0,68770.0,0.12601454]
[1722121102555,0.1463,68771.0,68770.0,0.12601454]
[1722121102760,0.21100485,68771.0,68770.0,0.12601454]
[1722121103442,0.21100485,68771.0,68770.0,0.13201454]
[1722121103958,0.21104824,68771.0,68770.0,0.13201454]
[1722121104747,0.23386603,68771.0,68770.0,0.13201454]
[1722121105378,0.23386603,68771.0,68770.0,0.36467354]
[1722121105382,0.16911779,68771.0,68770.0,0.36467354]
[1722121105627,0.02281779,68771.0,68770.0,0.59733254]
[1722121114763,0.10601779,68771.0,68770.0,0.59733254]
[1722121114979,0.17021779,68771.0,68770.0,0.59733254]
[1722121117399,0.23476694,68771.0,68770.0,0.59733254]
[1722121117675,0.23476702,68771.0,68770.0,0.59733254]
[1722121118106,0.21194923,68771.0,68770.0,0.59733254]
[1722121118940,0.21194923,68771.0,68770.0,0.01568554]
[1722121119365,0.25557293,68771.0,68770.0,0.01568554]
[1722121120220,0.1474,68771.0,68770.0,0.01568554]
[1722121120427,0.21155055,68771.0,68770.0,0.01568554]
[1722121120849,0.25519034,68771.0,68770.0,0.01568554]
[1722121121511,0.23436849,68771.0,68770.0,0.01568554]
[1722121121740,0.21155055,68771.0,68770.0,0.01568554]
[1722121122090,0.21155055,68771.0,68770.0,0.13201454]
[1722121122257,0.21155055,68771.0,68770.0,0.01568554]
[1722121123469,0.1474,68771.0,68770.0,0.01568554]
[1722121123676,0.21160978,68771.0,68770.0,0.01568554]
[1722121124775,0.23442775,68771.0,68770.0,0.01568554]
[1722121125191,0.21160978,68771.0,68770.0,0.01568554]
[1722121125616,0.27708489,68771.0,68770.0,0.01568554]
[1722121127296,0.21170712,68771.0,68770.0,0.01568554]
[1722121127467,0.27717804,68771.0,68770.0,0.01568554]
[1722121127670,0.32181965,68771.0,68770.0,0.01568554]
[1722121127899,0.90345965,68771.0,68770.0,0.006]
[1722121128112,0.81616509,68771.0,68770.0,0.006]
[1722121129168,0.81616509,68771.0,68768.0,0.000924]
[1722121129169,0.70001099,68771.0,68768.0,0.000924]
[1722121129380,0.433393,68769.0,68768.0,0.000924]
[1722121129584,0.64527402,68769.0,68768.0,0.000924]
[1722121129790,0.87793602,68769.0,68768.0,0.000924]
[1722121130007,0.813455,68769.0,68768.0,0.000924]
[1722121130215,0.87805047,68769.0,68768.0,0.000924]
[1722121131782,0.87805047,68769.0,68768.0,0.006924]
[1722121131989,0.64538847,68769.0,68768.0,0.006924]
[1722121132184,0.32832647,68769.0,68768.0,0.006924]
[1722121132595,0.41554999,68769.0,68768.0,0.006924]
[1722121132771,0.43065667,68769.0,68768.0,0.006924]
[1722121132971,0.66331867,68769.0,68768.0,0.006924]
[1722121133170,0.5987232,68769.0,68768.0,0.006924]
[1722121133373,0.4157786,68769.0,68768.0,0.006924]
[1722121133601,0.4157786,68769.0,68768.0,0.006]
[1722121133602,0.58403327,68769.0,68768.0,0.006]
[1722121133981,0.6484406,68769.0,68768.0,0.006]
[1722121134383,0.32755204,68769.0,68768.0,0.006]
[1722121134599,0.32910624,68769.0,68768.0,0.006]
[1722121135816,0.56021404,68769.0,68768.0,0.006]
[1722121136477,0.56113803,68769.0,68768.0,0.006]
[1722121136764,0.56114077,68769.0,68768.0,0.006]
[1722121136918,0.495393,68769.0,68768.0,0.006]
[1722121137291,0.58396055,68769.0,68768.0,0.006]
[1722121137496,0.5611414,68769.0,68768.0,0.006]
[1722121139667,0.7938034,68769.0,68768.0,0.006]
[1722121139895,0.88002562,68769.0,68768.0,0.006]
[1722121140414,0.91794985,68769.0,68768.0,0.006]
[1722121141121,1.04832416,68769.0,68768.0,0.006]
[1722121141821,1.06342856,68769.0,68768.0,0.006]
[1722121142311,1.04865313,68769.0,68768.0,0.006]
[1722121142800,1.1989127,68769.0,68768.0,0.006]
[1722121143058,1.2140184,68769.0,68768.0,0.006]
[1722121143279,0.959531,68768.0,68767.0,0.000924]
[1722121143504,1.03975342,68768.0,68767.0,0.000924]
[1722121144223,1.02464772,68768.0,68767.0,0.000924]
[1722121145140,1.02964772,68768.0,68767.0,0.000924]
[1722121145582,1.02974135,68768.0,68767.0,0.000924]
[1722121145814,1.04484649,68768.0,68767.0,0.000924]
[1722121146039,1.02974105,68768.0,68767.0,0.000924]
[1722121146270,1.04484612,68768.0,68767.0,0.000924]
[1722121146565,1.15376775,68768.0,68767.0,0.000924]
[1722121146837,0.33943704,68768.0,68767.0,0.000924]
[1722121147062,0.57951412,68768.0,68767.0,0.000924]
[1722121147532,0.64487741,68768.0,68767.0,0.000924]
[1722121147760,0.64580189,68768.0,68767.0,0.000924]
[1722121147977,0.16933911,68768.0,68767.0,0.000924]
[1722121148180,0.17349771,68768.0,68767.0,0.000924]
[1722121148419,0.15067677,68768.0,68767.0,0.117258]
[1722121148639,0.15067677,68768.0,68767.0,0.98305557]
[1722121148640,0.005,68768.0,68767.0,0.98305557]
[1722121148844,0.055,68768.0,68767.0,0.66598657]
[1722121149466,0.055,68768.0,68767.0,0.89865557]
[1722121150252,0.11963315,68768.0,68767.0,0.89865557]
[1722121150478,0.11463315,68768.0,68767.0,0.89865557]
[1722121150669,0.11463315,68768.0,68767.0,0.117258]
[1722121150867,0.11563315,68768.0,68767.0,0.124258]
[1722121151854,0.13845211,68768.0,68767.0,0.124258]
[1722121152065,0.13850606,68768.0,68767.0,0.124258]
[1722121152850,0.1156871,68768.0,68767.0,0.589596]
[1722121154737,0.1156871,68768.0,68767.0,0.356927]
[1722121155099,0.11559634,68768.0,68767.0,0.356927]
[1722121155551,0.051,68768.0,68767.0,0.356927]
[1722121156340,0.13841515,68768.0,68767.0,0.356927]
[1722121156485,0.11559623,68768.0,68767.0,0.356927]
[1722121158481,0.11559623,68768.0,68767.0,0.342927]
[1722121158482,0.11561894,68768.0,68767.0,0.342927]
[1722121159111,0.11661894,68768.0,68767.0,0.351927]
[1722121159721,0.13943786,68768.0,68767.0,0.351927]
[1722121159971,0.11661894,68768.0,68767.0,0.351927]
[1722121161084,0.11657509,68768.0,68767.0,0.351927]
[1722121161627,0.11656855,68768.0,68767.0,0.351927]
[1722121163305,0.13938747,68768.0,68767.0,0.351927]
[1722121163647,0.26307009,68768.0,68767.0,0.120182]
[1722121164176,0.26307009,68768.0,68767.0,0.352851]
[1722121164376,0.26309715,68768.0,68767.0,0.352851]
[1722121164624,0.16017823,68768.0,68767.0,0.352851]
[1722121165127,0.16007394,68768.0,68767.0,0.352851]
[1722121165506,0.16008144,68768.0,68767.0,0.352851]
[1722121165909,0.11646662,68768.0,68767.0,0.352851]
[1722121166314,0.16008284,68768.0,68767.0,0.352851]
[1722121166920,0.11646662,68768.0,68767.0,0.352851]
[1722121167116,0.16008354,68768.0,68767.0,0.352851]
[1722121167504,0.11646662,68768.0,68767.0,0.352851]
[1722121167705,0.1600857,68768.0,68767.0,0.352851]
[1722121167913,0.18290462,68768.0,68767.0,0.352851]
[1722121168121,0.13928554,68768.0,68767.0,0.352851]
[1722121169327,0.18189484,68768.0,68767.0,0.352851]
[1722121170180,0.60950945,68768.0,68767.0,0.016924]
[1722121170380,0.94977865,68768.0,68767.0,0.016924]
[1722121170606,0.84073162,68768.0,68767.0,0.016924]
[1722121171356,0.776265,68768.0,68767.0,0.016924]
[1722121171597,0.84069873,68768.0,68767.0,0.016924]
[1722121172134,0.86351916,68768.0,68767.0,0.016924]
[1722121172490,0.84069873,68768.0,68767.0,0.016924]
[1722121173871,0.84225293,68768.0,68767.0,0.016924]
[1722121174487,0.84069873,68768.0,68767.0,0.016924]
[1722121174687,0.776265,68768.0,68767.0,0.016924]
[1722121174898,0.84023673,68768.0,68767.0,0.016924]
[1722121175099,0.776265,68768.0,68767.0,0.016924]
[1722121175299,0.84179189,68768.0,68767.0,0.016924]
[1722121175606,0.86461237,68768.0,68767.0,0.016924]
[1722121175808,0.86305817,68768.0,68767.0,0.016924]
[1722121176766,0.84023769,68768.0,68767.0,0.016924]
[1722121176944,0.84179189,68768.0,68767.0,0.016924]
[1722121177511,0.84023769,68768.0,68767.0,0.016924]
[1722121177953,0.84051422,68768.0,68767.0,0.016924]
[1722121181315,0.84062445,68768.0,68767.0,0.016924]
[1722121181702,0.86344547,68768.0,68767.0,0.016924]
[1722121181895,0.84062445,68768.0,68767.0,0.016924]
[1722121184560,0.86336851,68768.0,68767.0,0.016924]
[1722121184768,0.84054732,68768.0,68767.0,0.016924]
[1722121185015,0.84054866,68768.0,68767.0,0.016924]
[1722121185219,0.60788266,68768.0,68767.0,0.016924]
[1722121187227,0.116337,68766.0,68764.0,0.00960289]
[1722121187432,0.06428366,68765.0,68761.0,0.117268]
[1722121187629,0.06541602,68764.0,68761.0,0.117268]
[1722121187834,0.06541606,68764.0,68761.0,0.12671134]
[1722121188043,0.04360942,68762.0,68761.0,0.12671134]
[1722121188232,0.06436043,68762.0,68761.0,0.12671134]
[1722121188526,0.06436043,68763.0,68761.0,0.12671134]
[1722121188728,0.06541606,68764.0,68761.0,0.12671134]
[1722121188729,0.06436043,68762.0,68761.0,0.12671134]
[1722121189110,0.06436043,68763.0,68761.0,0.12671134]
[1722121189318,0.06436043,68762.0,68761.0,0.12671134]
[1722121190315,0.06436043,68762.0,68761.0,0.13871134]
[1722121190774,0.06536043,68762.0,68761.0,0.13871134]
[1722121191232,0.06528783,68762.0,68761.0,0.59209134]
[1722121191448,0.06628783,68762.0,68761.0,0.60209134]
[1722121191943,0.002,68762.0,68761.0,0.60209134]
[1722121192172,0.08893538,68762.0,68761.0,0.60209134]
[1722121192399,0.13155866,68762.0,68761.0,0.60209134]
[1722121192624,0.10973752,68762.0,68761.0,0.60709134]
[1722121193057,0.10773752,68762.0,68761.0,0.59209134]
[1722121193563,0.10973752,68762.0,68761.0,0.60909134]
[1722121193777,0.10873752,68762.0,68761.0,0.59709134]
[1722121194205,0.10973752,68762.0,68761.0,0.60909134]
[1722121194877,0.10979383,68762.0,68761.0,0.60909134]
[1722121195804,0.13261509,68762.0,68761.0,0.60909134]
[1722121197126,0.10979383,68762.0,68761.0,0.60909134]
[1722121197326,0.06616318,68762.0,68761.0,0.60909134]
[1722121197766,0.06617559,68762.0,68761.0,0.60909134]
[1722121200386,0.16617559,68762.0,68761.0,0.60909134]
[1722121200679,0.1248212,68762.0,68761.0,0.60909134]
[1722121200931,0.16614165,68762.0,68761.0,0.60909134]
[1722121201136,0.24914165,68762.0,68761.0,0.37640134]
[1722121201484,0.14914165,68762.0,68761.0,0.60909134]
[1722121201970,0.14914165,68762.0,68761.0,0.37640134]
[1722121202378,0.06614165,68762.0,68761.0,0.60909134]
[1722121202583,0.13159258,68762.0,68761.0,0.60909134]
[1722121202851,0.13159258,68762.0,68761.0,0.37640134]
[1722121203055,0.06614165,68762.0,68761.0,0.37640134]
[1722121203277,0.002,68762.0,68761.0,0.37640134]
[1722121203467,0.06622479,68762.0,68761.0,0.37640134]
[1722121203734,0.002,68762.0,68761.0,0.37640134]
[1722121203934,0.06623418,68762.0,68761.0,0.37640134]
[1722121204503,0.15353033,68762.0,68761.0,0.37640134]
[1722121204705,0.15353033,68762.0,68761.0,0.017924]
[1722121204706,0.32465437,68762.0,68761.0,0.017924]
[1722121204954,0.33187718,68762.0,68761.0,0.017924]
[1722121205194,0.56456318,68762.0,68761.0,0.017924]
[1722121206220,0.500329,68762.0,68761.0,0.017924]
[1722121206421,0.56506425,68762.0,68761.0,0.017924]
[1722121208152,0.79775025,68762.0,68761.0,0.017924]
[1722121208354,1.02535419,68762.0,68761.0,0.017924]
[1722121208555,0.89440996,68762.0,68761.0,0.017924]
[1722121208766,1.02943625,68762.0,68761.0,0.012924]
[1722121208968,1.25707974,68762.0,68761.0,0.012924]
[1722121209167,1.02943625,68762.0,68761.0,0.016924]
[1722121209365,1.1602941,68762.0,68761.0,0.016924]
[1722121209641,1.12521441,68762.0,68761.0,0.004924]
[1722121209842,1.25703588,68762.0,68761.0,0.011924]
[1722121210194,1.25603588,68762.0,68761.0,0.004924]
[1722121210393,1.25603588,68762.0,68761.0,0.001924]
[1722121210805,1.25703588,68762.0,68761.0,0.001924]
[1722121210998,1.25717932,68762.0,68761.0,0.001924]
[1722121211200,1.30717932,68762.0,68761.0,0.001924]
[1722121211811,1.33000272,68762.0,68761.0,0.001924]
[1722121212263,1.19918125,68762.0,68761.0,0.001924]
[1722121212445,1.17635785,68762.0,68761.0,0.001924]
[1722121212646,1.30717193,68762.0,68761.0,0.001924]
[1722121212811,1.30735112,68762.0,68761.0,0.001924]
[1722121213202,1.30735217,68762.0,68761.0,0.001924]
[1722121213399,1.17653769,68762.0,68761.0,0.001924]
[1722121213645,1.30734032,68762.0,68761.0,0.001924]
[1722121214422,1.21042086,68762.0,68761.0,0.001924]
[1722121214882,1.30730452,68762.0,68761.0,0.001924]
[1722121215101,1.21042086,68762.0,68761.0,0.001924]